Cogmind - Beta 13 @@@ ROGUE MODE // 2024.04.18 @ 21:07:40 Player: Morphaana Result: Destroyed by H-61 Shepherd with Heavy Assault Cannon Performance ------------- Evolutions (4) 2000 Regions Visited (7) 1400 Robots Destroyed (73) 365 Value Destroyed (2097) 2097 Prototype IDs (38) 760 Alien Tech Used (0) 0 Bonus (539) 539 TOTAL SCORE: 7161 Bonus ------- High Alert Combat Kills 239 Aligned with FarCom 300 Cogmind --------- Core Integrity 0/850 Matter 300/300 Energy 100/100 System Corruption 8% Temperature Cool (0) Movement Core (50) Location -6/Factory Parts ------- > --- POWER (1) -------- (None) > --- PROPULSION (5) --- (None) > --- UTILITY (7) ------ (None) > --- WEAPON (2) ------- (None) > --- INVENTORY (5) ---- Hacking Suite Peak State ------------ > --- POWER ------------ Light Nuclear Core > --- PROPULSION ------- VTOL Module Improved Flight Unit Improved Flight Unit Xenon Bombardment Thruster Xenon Bombardment Thruster > --- UTILITY ---------- Transmission Jammer Improved Light Armor Plating Hacking Suite Advanced Hacking Suite Advanced Hacking Suite Advanced Hacking Suite System Shield > --- WEAPON ----------- Proton Missile Launcher Power Maul > --- INVENTORY -------- Light Nuclear Core VTOL Module Hacking Suite [Rating: 58] Favorites ----------- Power Light Nuclear Core Engine Ion Engine Power Core Light Nuclear Core Propulsion Light Treads Treads Light Treads Leg Carbon-fiber Leg Wheel Compact Wheel Flight Unit Improved Flight Unit Utility Hacking Suite Device Weapon Cycler Storage Large Storage Unit Processor Signal Interpreter Hackware Hacking Suite Protection Improved Light Armor Plating Weapon Heavy Laser Energy Gun Heavy Laser Ballistic Gun Assault Rifle Launcher Proton Missile Launcher Special Weapon Remote Datajack Impact Weapon Power Maul Build | -11 -10 -10 -10 -9 -8 -7 -6 ------- Run | Yrd Mat Min Exi Min Mat Fac Fac Slots Evolved 8 | . . . . . 4 2 2 Power . | . . . . . . . . Propulsion 3 | . . . . . 2 . 1 Utility 5 | . . . . . 2 2 1 Weapon . | . . . . . . . . Parts Attached 102 | 6 2 1 . . 57 31 5 Power 11 | 1 . . . . 8 1 1 Engine 5 | 1 . . . . 4 . . Core 6 | . . . . . 4 1 1 Reactor . | . . . . . . . . Propulsion 30 | 2 . . . . 16 10 2 Treads 12 | 2 . . . . 10 . . Leg 4 | . . . . . 4 . . Wheel 2 | . . . . . 2 . . Hover . | . . . . . . . . Flight 12 | . . . . . . 10 2 Utility 30 | 1 2 . . . 11 14 2 Device 11 | . . . . . 8 1 2 Storage 2 | 1 1 . . . . . . Processor 2 | . 1 . . . . 1 . Hackware 8 | . . . . . . 8 . Protection 7 | . . . . . 3 4 . Artifact . | . . . . . . . . Weapon 31 | 2 . 1 . . 22 6 . Energy Gun 11 | . . . . . 11 . . Energy Cannon . | . . . . . . . . Ballistic Gun 9 | 2 . . . . 5 2 . Ballistic Cannon . | . . . . . . . . Launcher 9 | . . 1 . . 6 2 . Special Weapon 1 | . . . . . . 1 . Impact Weapon 1 | . . . . . . 1 . Slashing Weapon . | . . . . . . . . Piercing Weapon . | . . . . . . . . Special Melee Weapon . | . . . . . . . . Unidentified Prototypes 2 | . . . . . 2 . . Parts Lost 35 | . . . . . 18 3 14 Power 2 | . . . . . 1 . 1 Propulsion 16 | . . . . . 7 3 6 Utility 10 | . . . . . 4 . 6 Weapon 7 | . . . . . 6 . 1 Highest Loss Streak 14 | . . . . . 9 3 14 To Critical Strikes . | . . . . . . . . Average Slot Usage (%) 90 | . 95 100 100 100 85 93 87 Engine 6 | . 14 14 14 14 6 . . Core 3 | . . . . . 2 7 5 Treads 19 | . 28 28 28 28 25 3 . Leg 1 | . . . . . 2 . . Wheel 1 | . . . . . 1 1 . Flight 7 | . . . . . . 24 28 Device 7 | . . . . . 14 3 4 Storage 7 | . 14 14 14 14 9 1 . Processor 2 | . 9 14 14 14 . . . Hackware 9 | . . . . . . 29 30 Protection 3 | . . . . . 4 6 5 Energy Gun 5 | . . . . . 12 . . Ballistic Gun 9 | . 28 23 14 14 4 6 . Launcher 2 | . . 4 14 14 . 2 5 Impact Weapon 1 | . . . . . . 2 5 Naked Turns 12 | . . . . . . . 12 Heaviest Build 42 | 13 28 30 30 30 42 42 19 Greatest Support 80 | 40 40 40 40 40 80 60 26 Greatest Overweight (x) 6 | 1 . . . . 3 6 1 Average Overweight (x) . | . . . . . . . . Largest Inventory Capacity 15 | 8 15 15 15 15 15 15 5 Average Capacity 12 | 7 14 15 15 15 15 6 5 Most Carried 15 | . 4 4 4 4 15 10 4 Average Carried 8 | . 2 4 4 4 13 5 3 Final Capacity 15 | 8 15 15 15 15 15 5 5 Final Carried 10 | . 4 4 4 4 10 5 1 Class Distribution -------------------- 42% | Mutant 31% | Scavenger-Mutant 19% | Hacker-Sprinter 4% | Wizard-Sprinter Dominant Class ---------------- Mutant | -10/Materials Mutant | -10/Mines Mutant | -10/Exiles Mutant | -9/Mines Scavenger-Mutant | -8/Materials Hacker-Sprinter | -7/Factory Wizard-Sprinter | -6/Factory Resources | -11 -10 -10 -10 -9 -8 -7 -6 ----------- Run | Yrd Mat Min Exi Min Mat Fac Fac Matter Collected 1756 | 233 183 14 . 26 848 407 45 Remotely . | . . . . . . . . Salvage Created 2677 | . 208 5 . . 1941 393 130 Parts 149 | . 20 . . . 107 20 2 Haulers Intercepted 8 | . 1 . . . 4 2 1 Recyclers Shooed 1 | . . . . . 1 . . Parts Field Recycled . | . . . . . . . . Retrieved Matter . | . . . . . . . . Parts Self-Destructed . | . . . . . . . . Prevented . | . . . . . . . . Kills | -11 -10 -10 -10 -9 -8 -7 -6 ------- Run | Yrd Mat Min Exi Min Mat Fac Fac Combat Hostiles Destroyed 47 | . 3 3 . . 37 4 . Melee 1 | . . . . . . 1 . Guns 32 | . 3 . . . 26 3 . AOE 13 | . . 3 . . 10 . . Classes Destroyed 15 | . 4 1 . . 10 . . Worker 1 | . . . . . 1 . . Builder 1 | . . . . . 1 . . Hauler 8 | . 1 . . . 4 2 1 Recycler 3 | . . . . . 2 1 . Mechanic 1 | . . . . . 1 . . Operator 6 | . 1 . . . 2 2 1 Watcher 9 | . 1 . . . 5 3 . Swarmer 9 | . . . . . 6 3 . Cutter 3 | . . . . . 3 . . Grunt 19 | . 3 . . . 15 1 . Duelist 1 | . . . . . 1 . . Sentry 7 | . . . . . 7 . . Hunter 4 | . . . . . 4 . . Heavy 1 | . . . . . 1 . . Assembled 3 | . . 3 . . . . . Best Kill Streak 6 | . 3 3 . . 6 3 1 Combat Bots Only 4 | . 3 3 . . 4 3 . Max Kills in Single Turn 2 | . 1 2 . . 2 1 1 Gunslinging . | . . . . . . . . Exploded 2 | . . 2 . . 2 . . Melee 1 | . . . . . . 1 . Uniques/NPCs Destroyed . | . . . . . . . . Combat | -11 -10 -10 -10 -9 -8 -7 -6 -------- Run | Yrd Mat Min Exi Min Mat Fac Fac Hostile Shots Fired 473 | . 29 2 . . 252 78 112 Missed 168 | . 11 1 . . 76 36 44 Damage Taken 5303 | . 198 10 . . 3098 552 1445 Core 1522 | . 43 . . . 496 97 886 Absorbed by Shields 35 | . . . . . . 9 26 Regen/Repaired (Parts) 15 | . . . . . . 15 . Core Remaining (%) 69 | 100 . . . 82 9 86 . Volleys Fired 228 | . 34 3 . . 163 27 1 Largest 2 | . 2 1 . . 2 2 1 Hottest 138 | . 40 30 . . 138 53 39 Shots Fired 406 | . 68 3 . . 290 44 1 Gun 387 | . 68 . . . 275 44 . Cannon . | . . . . . . . . Launcher 19 | . . 3 . . 15 . 1 Special . | . . . . . . . . Kinetic 179 | . 68 . . . 67 44 . Thermal 208 | . . . . . 208 . . Explosive 18 | . . 3 . . 15 . . Electromagnetic 1 | . . . . . . . 1 Robot Hit Streak 16 | . 12 10 . . 16 5 . Robot Miss Streak 5 | . 2 . . . 4 5 . Penetration Max . | . . . . . . . . Secondary Targets 2 | . . . . . 2 . . Max Gunslinging Chain 1 | . . . . . 1 . . Shots Hit Robots 259 | . 51 1 . . 176 29 2 Core Hits 128 | . 11 6 . . 100 9 2 Critical Kills . | . . . . . . . . Critical Parts Destroyed 3 | . . . . . 1 2 . Critical Strikes 8 | . . . . . 6 2 . Burn 5 | . . . . . 5 . . Destroy 1 | . . . . . 1 . . Smash 2 | . . . . . . 2 . Melee Attacks 46 | . . . . . . 30 16 Impact 46 | . . . . . . 30 16 Slashing . | . . . . . . . . Piercing . | . . . . . . . . Sneak Attacks 3 | . . . . . . 2 1 Combat Hostiles . | . . . . . . . . Follow-up Attacks . | . . . . . . . . Damage Inflicted 5942 | . 550 140 . . 4055 1041 156 Guns 4090 | . 542 . . . 3173 375 . Cannons . | . . . . . . . . Explosions 993 | . . 132 . . 861 . . Melee 818 | . . . . . . 663 155 Ramming 41 | . 8 8 . . 21 3 1 Kinetic 1570 | . 542 . . . 653 375 . Thermal 2520 | . . . . . 2520 . . Explosive 993 | . . 132 . . 861 . . Electromagnetic . | . . . . . . . . Impact 818 | . . . . . . 663 155 Slashing . | . . . . . . . . Piercing . | . . . . . . . . Highest Corruption 8 | . . . . . 4 1 8 Average Corruption 3 | . . . . . 4 1 7 Corruption Purged . | . . . . . . . . Corruption Blocked . | . . . . . . . . Effects 10 | . . . . . 8 . 2 Message Errors 1 | . . . . . 1 . . Matter Fused 3 | . . . . . 3 . . Heat Flow Errors 2 | . . . . . 1 . 1 Energy Discharges 1 | . . . . . 1 . . Data Loss (minor) 2 | . . . . . 1 . 1 Weapon Failures 1 | . . . . . 1 . . Overload Shots . | . . . . . . . . Overflow Damage 317 | . . . . . 7 272 38 Projectiles . | . . . . . . . . Explosions 7 | . . . . . 7 . . Melee 310 | . . . . . . 272 38 Knockbacks 5 | . . . . . . 5 . Impact 5 | . . . . . . 5 . Kinetic . | . . . . . . . . Secondary . | . . . . . . . . Self-Inflicted Damage 162 | . . . . . 139 . 23 Shots 6 | . . . . . 5 . 1 Rammed 12 | . 3 3 . . 4 . 2 Targets Rammed 14 | . 3 3 . . 5 1 2 Kicked 1 | . . . . . 1 . . Crushed 1 | . . . . . . 1 . Highest Temperature 379 | . 12 . . . 379 36 92 Average Temperature 95 | . 6 . . . 111 15 26 Received Heat Transfer 981 | . 108 . . . 648 177 48 Effects 8 | . . . . . 8 . . Energy Bleed 1 | . . . . . 1 . . Interference 5 | . . . . . 5 . . Short Circuit 1 | . . . . . 1 . . Damage (minor) 1 | . . . . . 1 . . Siege Activations . | . . . . . . . . Robots Corrupted . | . . . . . . . . Combat Hostiles . | . . . . . . . . Parts Fried 5 | . . . . . . 3 2 Impact Corruptions 15 | . . . . . . 13 2 Robots Melted 1 | . . . . . 1 . . Combat Hostiles 1 | . . . . . 1 . . Parts Melted 9 | . . . . . 9 . . Heat Transferred 5217 | . . . . . 5217 . . Parts Sabotaged . | . . . . . . . . Parts Stolen . | . . . . . . . . Parts Stripped . | . . . . . . . . Power Chain Reactions . | . . . . . . . . Alert | -11 -10 -10 -10 -9 -8 -7 -6 ------- Run | Yrd Mat Min Exi Min Mat Fac Fac Peak Influence 728 | . 70 35 . . 728 397 319 Initial 331 | . . 27 . . . 331 88 Average 232 | . 14 29 . . 378 169 196 Maximum Alert Level 3 | . . . . . 3 1 1 Low Security (%) 56 | 100 100 100 . 100 32 60 47 Level 1 18 | . . . . . 11 39 52 Level 2 22 | . . . . . 49 . . Level 3 2 | . . . . . 6 . . Level 4 . | . . . . . . . . Level 5 . | . . . . . . . . High Security . | . . . . . . . . Max Security . | . . . . . . . . Squads Dispatched 28 | . 3 . . . 8 14 3 Investigation 15 | . 3 . . . 2 9 1 Extermination 2 | . . . . . . 2 . Reinforcement 9 | . . . . . 5 2 2 Assault 1 | . . . . . 1 . . Garrison 1 | . . . . . . 1 . Intercept . | . . . . . . . . Searches Triggered . | . . . . . . . . Construction Impeded . | . . . . . . . . Haulers Reinforced . | . . . . . . . . Active Scanning Responses . | . . . . . . . . Cargo Convoy Interrupts . | . . . . . . . . Stealth | -11 -10 -10 -10 -9 -8 -7 -6 --------- Run | Yrd Mat Min Exi Min Mat Fac Fac Distress Signals 8 | . 2 . . . 5 . 1 Communications Jammed . | . . . . . . . . Distress Signals . | . . . . . . . . Times Spotted 116 | . 6 2 . . 57 33 18 Peak Tracking Total 7 | . 3 2 . . 4 5 7 Tactical Retreats 16 | . 1 . . . . 11 4 Traps | -11 -10 -10 -10 -9 -8 -7 -6 ------- Run | Yrd Mat Min Exi Min Mat Fac Fac Traps Triggered 8 | . 1 . . . 1 4 2 Indirectly . | . . . . . . . . Trap Hack Attempts . | . . . . . . . . Triggered . | . . . . . . . . Disarmed . | . . . . . . . . Reprogrammed 6 | . . . . . . . 6 Reused 1 | . . . . . . . 1 Traps Extracted . | . . . . . . . . Installed . | . . . . . . . . Triggered 1 | . . . . . . . 1 Machines | -11 -10 -10 -10 -9 -8 -7 -6 ---------- Run | Yrd Mat Min Exi Min Mat Fac Fac Machines Disabled . | . . . . . . . . Max in Single Turn . | . . . . . . . . Machines Repaired . | . . . . . . . . Machines Dismantled . | . . . . . . . . Machines Sabotaged . | . . . . . . . . Overloaded Fab Kills . | . . . . . . . . Hacking | -11 -10 -10 -10 -9 -8 -7 -6 --------- Run | Yrd Mat Min Exi Min Mat Fac Fac Machines Accessed 41 | . 6 . 1 . 7 22 5 Terminals 32 | . 6 . . . 7 14 5 Fabricators 6 | . . . . . . 6 . Repair Stations 1 | . . . . . . 1 . Recycling Units 1 | . . . . . . 1 . Scanalyzers . | . . . . . . . . Garrison Access . | . . . . . . . . Total Hacks 139 | . 18 . 1 . 16 74 30 Successful 84 | . 8 . 1 . 4 45 26 Failed 54 | . 10 . . . 12 29 3 Catastrophic 9 | . 1 . . . 3 5 . Database Lockouts 1 | . . . . . . . 1 Manual 86 | . 16 . 1 . 14 39 16 Terminals 121 | . 18 . . . 16 57 30 Fabricators 12 | . . . . . . 12 . Repair Stations 2 | . . . . . . 2 . Recycling Units 3 | . . . . . . 3 . Scanalyzers . | . . . . . . . . Garrison Access . | . . . . . . . . Terminal Hacks 60 | . 8 . 1 . 3 27 21 Part Schematic 6 | . . . . . . 4 2 Robot Analysis 4 | . 3 . . . 1 . . Prototype ID Bank 6 | . 3 . . . . 2 1 Level Access Points 3 | . . . . . . 2 1 Terminal Index 2 | . . . . . . 1 1 Fabricator Index 3 | . . . . . . 1 2 Recycling Unit Index 1 | . . . . . . . 1 Alert Level 3 | . . . . . 1 . 2 Unreport Threat 2 | . . . . . . 2 . Locate Traps 8 | . 1 . . . . 4 3 Reprogram Traps 1 | . . . . . . . 1 Surveillance Status 2 | . . . . . . . 2 Patrol Status 1 | . . . . . . . 1 Investigation Status 1 | . . . . . . 1 . Recall Investigation 7 | . . . . . . 6 1 Recall Assault 1 | . . . . . . 1 . Hauler Manifests 4 | . 1 . . . 1 1 1 Registered Components 2 | . . . . . . 1 1 Zone Layout 2 | . . . . . . 1 1 Derelict Proto ID Bank 1 | . . . 1 . . . . Fabricator Hacks 12 | . . . . . . 12 . Load Schematic 6 | . . . . . . 6 . Build 6 | . . . . . . 6 . Repair Station Hacks 2 | . . . . . . 2 . Scan Component 1 | . . . . . . 1 . Repair 1 | . . . . . . 1 . Recycling Unit Hacks 3 | . . . . . . 3 . Process 1 | . . . . . . 1 . Report Inventory 1 | . . . . . . 1 . Retrieve Matter 1 | . . . . . . 1 . Scanalyzer . | . . . . . . . . Garrison Access Hacks . | . . . . . . . . Unauthorized Hacks 7 | . . . . . 1 1 5 Terminals 7 | . . . . . 1 1 5 Assimilate 2 | . . . . . . . 2 Botnet 5 | . . . . . 1 1 3 Fabricators . | . . . . . . . . Repair Stations . | . . . . . . . . Recycling Units . | . . . . . . . . Scanalyzers . | . . . . . . . . Garrison Access . | . . . . . . . . Data Cores Recovered 1 | . . . . . . . 1 Used 1 | . . . . . . . 1 Hacking Detections 33 | . 4 . . . 7 19 3 Full Trace Events 14 | . 2 . . . 2 9 1 Feedback Events . | . . . . . . . . Feedback Blocked . | . . . . . . . . Robot Schematics Acquired . | . . . . . . . . Robots Built . | . . . . . . . . Authchips . | . . . . . . . . Time . | . . . . . . . . Total Robot Build Rating . | . . . . . . . . Part Schematics Acquired 6 | . . . . . . 4 2 Parts Built 6 | . . . . . . 6 . Authchips . | . . . . . . . . Time 466 | . . . . . . 466 . Total Part Build Rating 28 | . . . . . . 28 . Parts Repaired 1 | . . . . . . 1 . Time 51 | . . . . . . 51 . Parts Recycled . | . . . . . . . . Recycled Matter 88 | . . . . . . 88 . Retrieved Matter 88 | . . . . . . 88 . Retrieved Components . | . . . . . . . . Parts Scanalyzed . | . . . . . . . . Part Schematics Acquired . | . . . . . . . . Parts Damaged . | . . . . . . . . Bothacking | -11 -10 -10 -10 -9 -8 -7 -6 ------------ Run | Yrd Mat Min Exi Min Mat Fac Fac Used RIF Installer . | . . . . . . . . Robots Hacked . | . . . . . . . . Non-combat . | . . . . . . . . Combat . | . . . . . . . . Robot Hacks Applied . | . . . . . . . . Relay Couplers Released . | . . . . . . . . Fabnet Peak Effective % . | . . . . . . . . Robots Rewired . | . . . . . . . . Allies Hacked . | . . . . . . . . Hacks Repelled . | . . . . . . . . Allies | -11 -10 -10 -10 -9 -8 -7 -6 -------- Run | Yrd Mat Min Exi Min Mat Fac Fac Total Allies 3 | . . 2 . . . . 1 Largest Group 2 | . . 2 . . . . 1 Highest-Rated Group 42 | . . 42 . . . . 10 Highest-Rated Ally 31 | . . 31 . . . . 10 Total Orders . | . . . . . . . . Ally Attacks 4 | . . 4 . . . . . Total Damage 42 | . . 42 . . . . . Kills 1 | . . 1 . . . . . Allies Corrupted . | . . . . . . . . Allies Melted . | . . . . . . . . Intel | -11 -10 -10 -10 -9 -8 -7 -6 ------- Run | Yrd Mat Min Exi Min Mat Fac Fac Robot Analysis Total 4 | . 3 . . . 1 . . Derelict Logs Recovered 2 | . . 2 . . . . . Drone Launches . | . . . . . . . . Drone Recoveries . | . . . . . . . . Exploration | -11 -10 -10 -10 -9 -8 -7 -6 ------------- Run | Yrd Mat Min Exi Min Mat Fac Fac Turns Passed 6488 | 83 962 230 389 60 2767 1669 328 Spaces Moved 5651 | 49 519 108 244 38 1278 2852 563 Core 15 | 3 . . . . . . 12 Treads 2164 | 46 519 108 244 38 1053 156 . Legs 173 | . . . . . 173 . . Wheels 52 | . . . . . 52 . . Hover . | . . . . . . . . Flight 3247 | . . . . . . 2696 551 Fastest Speed 26 | 50 160 160 160 160 115 26 27 Average Speed 85 | 154 160 160 160 160 166 36 28 Slowest Speed 272 | 160 160 160 160 160 260 272 120 Overloaded Moves . | . . . . . . . . Propulsion Burnouts . | . . . . . . . . Robots Hopped 10 | . . . . . . 9 1 Cave-ins Triggered . | . . . . . . . . Exploration Rate (%) 41 | 3 81 32 62 14 77 55 9 Regions Visited 7 Branch Regions 3 Pre-discovered Areas 1 | . . 1 . . . . . Known Exits Taken 5 | . 1 1 1 1 . 1 . Unknown Exits Taken 2 | 1 . . . . 1 . . Scrap Searched 2 | . . 1 . 1 . . . Spaces Dug 32 | . . . . . 3 17 12 Terrain Destroyed 120 | . . 9 . . 81 18 12 Melee 29 | . . . . . . 17 12 Projectile 1 | . . . . . . 1 . AOE 90 | . . 9 . . 81 . . Terrain Rammed . | . . . . . . . . Walls Destroyed . | . . . . . . . . Machines Disabled . | . . . . . . . . Actions | -11 -10 -10 -10 -9 -8 -7 -6 --------- Run | Yrd Mat Min Exi Min Mat Fac Fac Total 6857 | 54 587 160 243 37 1691 3387 698 Wait 701 | . 25 46 . . 136 383 111 Move 5624 | 48 518 107 243 37 1277 2833 561 Hop 10 | . . . . . . 9 1 Pick Up 42 | . 4 . . . 25 13 . Fast Attach 39 | 6 2 . . . 19 11 1 Attach 28 | . . . . . 15 9 4 Detach 5 | . . . . . 3 2 . Swap 35 | . . 1 . . 23 11 . Drop 49 | . 1 . . . 25 23 . Fire 228 | . 34 3 . . 163 27 1 Melee 46 | . . . . . . 30 16 Ram 2 | . . . . . . . 2 Kick 1 | . . . . . 1 . . Crush 11 | . 3 3 . . 4 1 . Escape Stasis 36 | . . . . . . 35 1 Rewire . | . . . . . . . . Trap . | . . . . . . . . Miscellaneous . | . . . . . . . . Route ------- -11/Scrapyard -10/Materials (discovered 3 exits: *Mat x2 / *Min) -10/Mines (discovered 2 exits: *Mat / *Exi) -10/Exiles -9/Mines -8/Materials (discovered 4 exits: *Fac x3 / [*Sto]) -7/Factory (discovered 4 exits: *Fac x4) -6/Factory (discovered 4 exits: Fac x4) History --------- Turn | Location | Event 11 | -11/Scrapyard | Discovered new exit (range 16) 84 | -11/Scrapyard | Entered Materials 231 | -10/Materials | Discovered new exit (range 15) 304 | -10/Materials | Build established: Mutant 320 | -10/Materials | Met 8R-AWN 348 | -10/Materials | Discovered new exit (range 9) 660 | -10/Materials | Discovered new exit (range 10) 675 | -10/Materials | Identified exit to Materials 1044 | -10/Materials | Identified exit to Mines 1046 | -10/Materials | Entered Mines 1048 | -10/Mines | Followed 8R-AWN into the Mines 1088 | -10/Mines | Discovered exit to Materials (range 10) 1170 | -10/Mines | Assembled infested the area 1179 | -10/Mines | Learned location of Zion (-7) 1187 | -10/Mines | Learned 2 Materials zone layouts 1270 | -10/Mines | Discovered new exit (range 5) 1274 | -10/Mines | Identified exit to Exiles 1276 | -10/Mines | Entered Exiles 1318 | -10/Exiles | Welcomed by 8R-AWN 1345 | -10/Exiles | Met EX-HEX 1396 | -10/Exiles | Met EX-BIN 1470 | -10/Exiles | Aligned with FarCom system 1472 | -10/Exiles | Given EX-Vault access code 1510 | -10/Exiles | Opened EX-Vault 1547 | -10/Exiles | Warned to stay clear of 0b10 Research branches 1592 | -10/Exiles | Met EX-DEC 1646 | -10/Exiles | Discovered new exit (range 14) 1664 | -10/Exiles | Identified exit to Mines 1665 | -10/Exiles | Entered Mines 1694 | -9/Mines | Discovered new exit (range 12) 1723 | -9/Mines | Identified exit to Materials 1725 | -9/Mines | Entered Materials 1725 | -8/Materials | Evolved 4 slots: Propulsion x2, Utility x2 2824 | -8/Materials | Discovered new exit (range 16) 2935 | -8/Materials | Build established: Scavenger-Mutant 3325 | -8/Materials | First assault squad dispatched 3456 | -8/Materials | Core integrity fell below 50% 3500 | -8/Materials | Lost 3 parts (1p1n1w) 3831 | -8/Materials | Discovered new exit (range 16) 3857 | -8/Materials | Discovered new exit (range 15) 4297 | -8/Materials | Core integrity fell below 20% 4347 | -8/Materials | Discovered new exit (range 15) 4348 | -8/Materials | Lost 9 parts (2n3u4w) 4492 | -8/Materials | Entered Factory 4492 | -7/Factory | Evolved 2 slots: Utility x2 4804 | -7/Factory | Lost 3 parts (3n) 4842 | -7/Factory | Discovered new exit (range 12) 4886 | -7/Factory | Identified exit to Factory 5052 | -7/Factory | Fabricated Imp. Flight Unit? 5081 | -7/Factory | Build established: Hacker-Sprinter 5179 | -7/Factory | Fabricated Imp. Flight Unit? 5421 | -7/Factory | Fabricated Adv. Hacking Suite? 5492 | -7/Factory | Garrison activated, responded to threat 5616 | -7/Factory | Fabricated Adv. Hacking Suite? 5708 | -7/Factory | Repaired Imp. Flight Unit 5961 | -7/Factory | Fabricated Adv. Hacking Suite? 6121 | -7/Factory | Fabricated Adv. Hacking Suite? 6161 | -7/Factory | Entered another Factory area 6161 | -6/Factory | Evolved 2 slots: Propulsion x1, Utility x1 6175 | -6/Factory | Identified exit to Factory 6238 | -6/Factory | Central database locked down 6415 | -6/Factory | Build established: Wizard-Sprinter 6472 | -6/Factory | Core integrity fell below 50% 6484 | -6/Factory | Core integrity fell below 20% 6489 | -6/Factory | Destroyed by H-61 Shepherd with Heavy Assault Cannon Last Messages --------------- Knocked back. Adv. ECM Suite severed. Knocked back. Penetrated by Slug. Knocked back. Slammed into C-17 Slicer. Adv. Hacking Suite severed. Triggered Stasis Trap. A bubble of rippling energy engulfs the area. Field strength at 94. Field strength at 88. Knocked back. Triggered Stasis Trap. A bubble of rippling energy engulfs the area. Field strength at 94. System corrupted: Heat flow error (+129). Hacking Suite destroyed. Critical hit (Blast). Knocked back. Penetrated by Slug. Map ----- +----------------------------------------------------+ | ?????????????????????????????????????????????????? | | ?????????????????????????????????????????????????? | | ???????????????????????? ?????????????????????? | | ??????????????????????# ?????????????????????? | | ??????????????????????# ?????????????????????? | | ??????????????????????# #????????????????????? | | ??????????????????????# #????????????????????? | | ??????????????????????# #???""???????????????? | | ??????????????????????# #???""???????????????? | | ??????????????????????+ +?? "????????????????? | | ??????????????????????# #? ?????????????????? | | ??????????????????????# #? ??????????????????? | | ??????????????????????# # ??????????????????? | | ??????????????????????# # ???????????????????? | | ??????????????????????# ;????????????????????? | | ??????????????????????# #????????????????????? | | ??????????????????????# #????????????????????? | | ??????????????######??# % ###### #?????????????? | | ?????????????? ??# % ???????? | | ??????????????? ?# ! #######??????????????? | | ?????????????? ?# ##???????????????????? | | ??????????????""" """ # % ;#???????????????????? | | ??????????????""" """ # % # ??????????????? | | ????????????? """ """/+%% + """ #???????????? | | ????????????# %; #? """ ??#???????????? | | ????????????# # c@c #? """???????????????? | | ????????????#######+##;^ ^ #?? ???????????????? | | ?????????????????# # ^^ #???""???????????????? | | ?????????????????#!!* # #???"????????????????? | | ????